Workbook

Sheet Протокол
S1: 2
S2: 2021-01-25
B11: Протокол № 164-28
S18: Бетон
S19: В30
N26: Возраст бетона | P26: 28 | Q26: суток
B28: № ni | C28: Маркировка образца | D28: Вес образца, г | E28: Линейные размеры образцов, мм | I28: Площадь образца, см² | J28: Плотность образца, кг/м3 | K28: Средняя плотность серии образцов, кг/м3 | L28: Отклонение от средней плотности, кг/м3 | M28: Разрушающая нагрузка, кН | N28: Прочность бетона, приведенная к базовому размеру образца, Мпа | O28: Средняя прочность серии образцов, Мпа | P28: =IF( P26>27, "Контроль прочности" & IF(S18="раствор", " раствора, %", " Вф ≥ В" ) & "", IF(S18="раствор", "Набор прочности раствора, %", "Фактический класс бетона Вф" ) ) -> Контроль прочности Вф ≥ В
E29: Длина | G29: Ширина | H29: Высота
B30: 1 | C30: 2 | D30: 3 | E30: 4 | G30: 5 | H30: 6 | I30: 7 | J30: 8 | K30: 9 | L30: 10 | M30: 11 | N30: 12 | O30: 13 | P30: 14
B31: 1 | C31: =MID(B11,SEARCH("№",B11,1)+1,8) -> 164-28 | D31: 2300 | E31: =IF(D31="","",IF($S$18="Бетон",100,71)) -> 100 | G31: =IF(D31="","",IF($S$18="Бетон",100,71)) -> 100 | H31: =IF(D31="","",IF($S$18="Бетон",100,71)) -> 100 | I31: =IF(D31="","",MROUND(E31*G31/100,1)) -> 100 | J31: =IF(D31="","",D31/E31/G31/H31*1000000) -> 2300 | K31: =AVERAGE(J31:J36) -> 2251.333333 | L31: =IF(J31="","",(J31-K$31)) -> 48.66666667 | M31: 400 | N31: =IF(M31="","",IF(S18="Бетон",M31*0.95/I31*10,(M31/((I31/10))*1))) -> 38 | O31: =IF(AND(S18="Раствор",COUNT(N31:N36)=3),AVERAGE(N31:N36),IF(AND(S18="Раствор",COUNT(N31:N36)>3),"Только 3-и образца",IF(COUNT(N31:N36)>5,ROUND(((SUM(N31:N36)-SMALL(N31:N36,1)-SMALL(N31:N36,2))/4),2),IF(COUNT(N31:N36)=5,ROUND(((SUM(N31:N36)-SMALL(N31:N36,1))/4),2),IF(COUNT(N31:N36)=4,ROUND(((SUM(N31:N36)-SMALL(N31:N36,1))/3),2),IF(COUNT(N31:N36)=3,ROUND(((SUM(N31:N36)-SMALL(N31:N36,1))/2),2),IF(COUNT(N31:N36)<=2,ROUND(AVERAGE(N31:N36),2),))))))) -> 39.65 | P31: =IF(S18="Раствор",IF(VALUE(P26)>27,ROUND(O31,2)*100/VLOOKUP(S19,Класс!D5:F18,2,FALSE),ROUND(O31,2)*100/VLOOKUP(S19,Класс!D5:F18,2,FALSE)),IF(VALUE(P26)>27,(IF(ROUND(O31*0.8,)>--VLOOKUP(S19,Класс!A5:C18,3,FALSE),"B"&ROUND(O31*0.8,)&" ≥ B"&VLOOKUP(S19,Класс!A5:C18,3,FALSE),"В"&ROUND(O31*0.8,)&" < В"&VLOOKUP(S19,Класс!A5:C18,3,FALSE))),("B"&ROUND(O31*0.8,)))) -> B32 ≥ B30
B32: 2 | D32: 2228 | E32: =IF(D32="","",IF($S$18="Бетон",100,71)) -> 100 | G32: =IF(D32="","",IF($S$18="Бетон",100,71)) -> 100 | H32: =IF(D32="","",IF($S$18="Бетон",100,71)) -> 100 | I32: =IF(D32="","",MROUND(E32*G32/100,1)) -> 100 | J32: =IF(D32="","",D32/E32/G32/H32*1000000) -> 2228 | L32: =IF(J32="","",(J32-K$31)) -> -23.33333333 | M32: 399 | N32: 39.9
B33: 3 | D33: 2226 | E33: 100 | G33: 100 | H33: 100 | I33: 100 | J33: 2226 | L33: -25.33333333 | M33: 394 | N33: 39.4
B34: 4
B35: 5 | L35: =IF(J35="","",(J35-K$31)) -> 
B36: 6
B39: =IF(S18="Бетон",IF(VALUE(P26)<27,"ЗАКЛЮЧЕНИЕ: В возрасте "&P26&" суток фактический класс бетона В"&ROUND(O31*0.8,)&" , что составляет "&ROUND(O31*0.8/VLOOKUP(S19,Класс!$A$5:$C$18,3,FALSE)*100,)&" % от проектного класса.",IF(AND(VALUE(P26)>27,ROUND(O31*0.8,)>--VLOOKUP(S19,Класс!$A$5:$C$18,3,FALSE)),"ЗАКЛЮЧЕНИЕ: В возрасте "&P26&" суток фактический класс бетона В"&ROUND(O31*0.8,)&" , что составляет "&ROUND(O31*0.8/VLOOKUP(S19,Класс!$A$5:$C$18,3,FALSE)*100,)&" % от проектного класса. Конструкция подлежит приемке в соответствии с п. 8.5.2 ГОСТ 18105","ЗАКЛЮЧЕНИЕ: В возрасте "&P26&" суток фактический класс бетона В"&ROUND(O31*0.8,)&" , что составляет "&ROUND(O31*0.8/VLOOKUP(S19,Класс!$A$5:$C$18,3,FALSE)*100,)&" % это меньше от проектного класса, на "&100-ROUND(O31*0.8/VLOOKUP(S19,Класс!$A$5:$C$18,3,FALSE)*100,)&"% .")),IF(VALUE(P26)<27,"ЗАКЛЮЧЕНИЕ: В возрасте "&P26&" суток прочность раствора М"& ROUND(O31,2) &" МПа, что составляет "&ROUND(O31*100/VLOOKUP(S19,Класс!D5:F18,2,FALSE),)&" % от проектной марки.",IF(AND(VALUE(P26)>27, ROUND(O31*VLOOKUP(S19,Класс!D5:F18,3, FALSE)/VLOOKUP(S19,Класс!D5:F18,2, FALSE),) >--VLOOKUP(S19,Класс!D5:F18,3,FALSE)),"ЗАКЛЮЧЕНИЕ: В возрасте "&P26&" суток фактическая прочность раствора "& ROUND(O31,2) &" МПа, что составляет "&ROUND(O31*100/VLOOKUP(S19,Класс!D5:F18,2, FALSE),)&" % от проектной марки.","ЗАКЛЮЧЕНИЕ: В возрасте "&P26&" суток фактическая прочность раствора "& ROUND(O31,2) &" МПа, что составляет "&ROUND(O31*100/VLOOKUP(S19,Класс!D5:F18,2,FALSE),)&" % это меньше от проектной марки на "&100-ROUND(O31*100/VLOOKUP(S19,Класс!D5:F18,2,FALSE),)&" %."))) -> ЗАКЛЮЧЕНИЕ: В возрасте 28 суток фактический класс бетона В32 , что составляет 106 % от проектного класса. Конструкция подлежит приемке в соответствии с п. 8.5.2 ГОСТ 18105
H44: Испытания провел: | J44: =VLOOKUP(O44,Сотрудники!A1:B9,2,FALSE) -> Инженер лаборатории ООО "ПЕЛИСКЕР" | N44: ____________ | O44: / А.С. Анисимов /

Sheet Сотрудники (hidden)
A1: / А.В. Шубин / | B1: Лаборант ООО "ПЕЛИСКЕР" | C1: ООО "Бетонный завод 222"
A2: / А.С. Анисимов / | B2: Инженер лаборатории ООО "ПЕЛИСКЕР"
A3: / Е.В. Лоленко / | B3: Инженер лаборатории ООО "ПЕЛИСКЕР"
A4: / И.П. Собакин / | B4: Инженер лаборатории ООО "ПЕЛИСКЕР"

Sheet Класс
A1: Коэффициент вариации прочности | B1: =IF(Протокол!S17="","",Протокол!S17) ->  | D1: Бетон | O1: Фактическая прочность | P1: Условие | Q1: Требуемая прочность
A2: Коэффициент требуемой прочности КТ для | B2: =IF(B1="",VLOOKUP(13.5,$G$21:$H$1021,2,TRUE),VLOOKUP($B$1,$G$21:$H$1021,2,TRUE)) -> 1.305 | D2: Раствор | O2: 1.1 | P2: =IF(O3=Q3,"ИСТИНА","ЛОЖЬ") -> ЛОЖЬ | Q2: 32
O3: =ROUND(O2*0.8,1) -> 0.9 | Q3: 25
A4: КЛАСС | B4: Мпа | D4: Марка | E4: Мпа
A5: В5 | B5: =ROUND(MID(A5,2,4)*IF($B$1="",1.305,$B$2),2) -> 6.53 | C5: =MID(A5,2,4) -> 5 | D5: М4 | E5: =ROUND(MID(D5,2,4)*0.0980665,2) -> 0.39 | F5: =MID(D5,2,4) -> 4 | O5: ЗАКЛЮЧЕНИЕ: Фактическая прочность бетона в партии по ГОСТ 18105-2010 схема Г, соответствует 1,1 МПа
A6: В7,5 | B6: =ROUND(MID(A6,2,4)*IF($B$1="",1.305,$B$2),2) -> 9.79 | C6: =MID(A6,2,4) -> 7,5 | D6: М10 | E6: =ROUND(MID(D6,2,4)*0.0980665,2) -> 0.98 | F6: =MID(D6,2,4) -> 10 | O6: ="Фактический класс бетона по прочности монолитных конструкций при контроле по схеме Г п.:7.5 "&"Bф = "&ROUND(0.8*O2,0)&"" -> Фактический класс бетона по прочности монолитных конструкций при контроле по схеме Г п.:7.5 Bф = 1
A7: В10 | B7: 13.05 | C7: 10 | D7: М25 | E7: 2.45 | F7: 25 | O7: =IF(O3<Q3,CONCATENATE("Вф ",MROUND(O3,1))&" < "&CONCATENATE("Внорм ",Q3),CONCATENATE("Вф ",O3)&" > "&CONCATENATE("Внорм ",Q3)) -> Вф 1 < Внорм 25 | Q7: =IF(O3<Q3,"условие не выполняется","условие выполняется") -> условие не выполняется
A8: В12,5 | B8: 16.31 | C8: 12,5 | D8: М50 | E8: 4.9 | F8: 50 | O8: ="Монолитная конструкция "&IF(Q7="условие выполняется","подлежит приемке по прочности","не подлежит приемке по прочности")&" бетона, так как "&IF(Q7="условие выполняется","условие выполняется","условие не выполняется")&" по ГОСТ 18105-2010 п 8.3.: "&O7&"" -> Монолитная конструкция не подлежит приемке по прочности бетона, так как условие не выполняется по ГОСТ 18105-2010 п 8.3.: Вф 1 < Внорм 25
A9: В15 | B9: 19.58 | C9: 15 | D9: М75 | E9: 7.35 | F9: 75
A10: В20 | B10: 26.1 | C10: 20 | D10: М100 | E10: 9.81 | F10: 100
A11: В22,5 | B11: 29.36 | C11: 22,5 | D11: М150 | E11: 14.71 | F11: 150
A12: В25 | B12: 32.63 | C12: 25 | D12: М200 | E12: 19.61 | F12: 200 | O12: ЗАКЛЮЧЕНИЕ: Фактическая прочность раствора в партии, соответствует проектным требованиям прочности раствора
A13: В30 | B13: 39.15 | C13: 30 | D13: М300 | E13: 29.42 | F13: 300 | O13: ЗАКЛЮЧЕНИЕ: Фактическая прочность раствора в партии, не соответствует проектным требованиям прочности раствора
A14: В35 | B14: 45.68 | C14: 35 | D14: М350 | E14: 34.32 | F14: 350
A15: В40 | B15: 52.2 | C15: 40 | D15: М400 | E15: 39.23 | F15: 400
A16: В45 | B16: 58.73 | C16: 45 | D16: М450 | E16: 44.13 | F16: 450
A17: В50 | B17: 65.25 | C17: 50 | D17: М500 | E17: 49.03 | F17: 500
A18: В55 | B18: 71.78 | C18: 55 | D18: М550 | E18: 53.94 | F18: 550
G20: ТАБЛИЦА 2 ГОСТ 18105
G21: 6 | H21: 1.07
G22: 6.01 | H22: =H21+(H$121-H$21)/100 -> 1.0701
G23: 6.02 | H23: 1.0702
G24: 6.03 | H24: 1.0703
G25: 6.04 | H25: 1.0704
G26: 6.05 | H26: 1.0705
G27: 6.06 | H27: 1.0706
G28: 6.07 | H28: 1.0707
G29: 6.08 | H29: 1.0708
G30: 6.09 | H30: 1.0709
G31: 6.1 | H31: 1.071
G32: 6.11 | H32: 1.0711
G33: 6.12 | H33: 1.0712
G34: 6.13 | H34: 1.0713
G35: 6.14 | H35: 1.0714
G36: 6.15 | H36: 1.0715
G37: 6.16 | H37: 1.0716
G38: 6.17 | H38: 1.0717
G39: 6.18 | H39: 1.0718
G40: 6.19 | H40: 1.0719
G41: 6.2 | H41: 1.072
G42: 6.21 | H42: 1.0721
G43: 6.22 | H43: 1.0722
G44: 6.23 | H44: 1.0723
G45: 6.24 | H45: 1.0724
G46: 6.25 | H46: 1.0725
G47: 6.26 | H47: 1.0726
G48: 6.27 | H48: 1.0727
G49: 6.28 | H49: 1.0728
G50: 6.29 | H50: 1.0729
G51: 6.3 | H51: 1.073
G52: 6.31 | H52: 1.0731
G53: 6.32 | H53: 1.0732
G54: 6.33 | H54: 1.0733
G55: 6.34 | H55: 1.0734
G56: 6.35 | H56: 1.0735
G57: 6.36 | H57: 1.0736
G58: 6.37 | H58: 1.0737
G59: 6.38 | H59: 1.0738
G60: 6.39 | H60: 1.0739
G61: 6.4 | H61: 1.074
G62: 6.41 | H62: 1.0741
G63: 6.42 | H63: 1.0742
G64: 6.43 | H64: 1.0743
G65: 6.44 | H65: 1.0744
G66: 6.45 | H66: 1.0745
G67: 6.46 | H67: 1.0746
G68: 6.47 | H68: 1.0747
G69: 6.48 | H69: 1.0748
G70: 6.49 | H70: 1.0749
G71: 6.5 | H71: 1.075
G72: 6.51 | H72: 1.0751
G73: 6.52 | H73: 1.0752
G74: 6.53 | H74: 1.0753
G75: 6.54 | H75: 1.0754
G76: 6.55 | H76: 1.0755
G77: 6.56 | H77: 1.0756
G78: 6.57 | H78: 1.0757
G79: 6.58 | H79: 1.0758
G80: 6.59 | H80: 1.0759
G81: 6.6 | H81: 1.076
G82: 6.61 | H82: 1.0761
G83: 6.62 | H83: 1.0762
G84: 6.63 | H84: 1.0763
G85: 6.64 | H85: 1.0764
G86: 6.65 | H86: =H85+(H$121-H$21)/100 -> 1.0765
G87: 6.66 | H87: 1.0766
G88: 6.67 | H88: 1.0767
G89: 6.68 | H89: 1.0768
G90: 6.69 | H90: 1.0769
G91: 6.7 | H91: 1.077
G92: 6.71 | H92: 1.0771
G93: 6.72 | H93: 1.0772
G94: 6.73 | H94: 1.0773
G95: 6.74 | H95: 1.0774
G96: 6.75 | H96: 1.0775
G97: 6.76 | H97: 1.0776
G98: 6.77 | H98: 1.0777
G99: 6.78 | H99: 1.0778
G100: 6.79 | H100: 1.0779
G101: 6.8 | H101: 1.078
G102: 6.81 | H102: 1.0781
G103: 6.82 | H103: 1.0782
G104: 6.83 | H104: 1.0783
G105: 6.84 | H105: 1.0784
G106: 6.85 | H106: 1.0785
G107: 6.86 | H107: 1.0786
G108: 6.87 | H108: 1.0787
G109: 6.88 | H109: 1.0788
G110: 6.89 | H110: 1.0789
G111: 6.9 | H111: 1.079
G112: 6.91 | H112: 1.0791
G113: 6.92 | H113: 1.0792
G114: 6.93 | H114: 1.0793
G115: 6.94 | H115: 1.0794
G116: 6.95 | H116: 1.0795
G117: 6.96 | H117: 1.0796
G118: 6.97 | H118: 1.0797
G119: 6.98 | H119: 1.0798
G120: 6.99 | H120: 1.0799
G121: 7 | H121: 1.08
G122: 7.01 | H122: =H121+(H$221-H$121)/100 -> 1.0801
G123: 7.02 | H123: 1.0802
G124: 7.03 | H124: 1.0803
G125: 7.04 | H125: 1.0804
G126: 7.05 | H126: 1.0805
G127: 7.06 | H127: 1.0806
G128: 7.07 | H128: 1.0807
G129: 7.08 | H129: 1.0808
G130: 7.09 | H130: 1.0809
G131: 7.1 | H131: 1.081
G132: 7.11 | H132: 1.0811
G133: 7.12 | H133: 1.0812
G134: 7.13 | H134: 1.0813
G135: 7.14 | H135: 1.0814
G136: 7.15 | H136: 1.0815
G137: 7.16 | H137: 1.0816
G138: 7.17 | H138: 1.0817
G139: 7.18 | H139: 1.0818
G140: 7.19 | H140: 1.0819
G141: 7.2 | H141: 1.082
G142: 7.21 | H142: 1.0821
G143: 7.22 | H143: 1.0822
G144: 7.23 | H144: 1.0823
G145: 7.24 | H145: 1.0824
G146: 7.25 | H146: 1.0825
G147: 7.26 | H147: 1.0826
G148: 7.27 | H148: 1.0827
G149: 7.28 | H149: 1.0828
G150: 7.29 | H150: 1.0829
G151: 7.3 | H151: 1.083
G152: 7.31 | H152: 1.0831
G153: 7.32 | H153: 1.0832
G154: 7.33 | H154: 1.0833
G155: 7.34 | H155: 1.0834
G156: 7.35 | H156: 1.0835
G157: 7.36 | H157: 1.0836
G158: 7.37 | H158: 1.0837
G159: 7.38 | H159: 1.0838
G160: 7.39 | H160: 1.0839
G161: 7.4 | H161: 1.084
G162: 7.41 | H162: 1.0841
G163: 7.42 | H163: 1.0842
G164: 7.43 | H164: 1.0843
G165: 7.44 | H165: 1.0844
G166: 7.45 | H166: 1.0845
G167: 7.46 | H167: 1.0846
G168: 7.47 | H168: 1.0847
G169: 7.48 | H169: 1.0848
G170: 7.49 | H170: 1.0849
G171: 7.5 | H171: 1.085
G172: 7.51 | H172: 1.0851
G173: 7.52 | H173: 1.0852
G174: 7.53 | H174: 1.0853
G175: 7.54 | H175: 1.0854
G176: 7.55 | H176: 1.0855
G177: 7.56 | H177: 1.0856
G178: 7.57 | H178: 1.0857
G179: 7.58 | H179: 1.0858
G180: 7.59 | H180: 1.0859
G181: 7.6 | H181: 1.086
G182: 7.61 | H182: 1.0861
G183: 7.62 | H183: 1.0862
G184: 7.63 | H184: 1.0863
G185: 7.64 | H185: 1.0864
G186: 7.65 | H186: =H185+(H$221-H$121)/100 -> 1.0865
G187: 7.66 | H187: 1.0866
G188: 7.67 | H188: 1.0867
G189: 7.68 | H189: 1.0868
G190: 7.69 | H190: 1.0869
G191: 7.7 | H191: 1.087
G192: 7.71 | H192: 1.0871
G193: 7.72 | H193: 1.0872
G194: 7.73 | H194: 1.0873
G195: 7.74 | H195: 1.0874
G196: 7.75 | H196: 1.0875
G197: 7.76 | H197: 1.0876
G198: 7.77 | H198: 1.0877
G199: 7.78 | H199: 1.0878
G200: 7.79 | H200: 1.0879
G201: 7.8 | H201: 1.088
... 820 more rows
